Workbook

Sheet Instruction
A1: नमस्कार साथिओ
A2: आपकी सहायतार्थ मैने जुलाई 2022 में लगने वाली वार्षिक वेतन वृद्धि के आदेश बनाने के लिए यह एक्सेल प्रोग्राम बनाया है आशा करता हु इससे आपको बहुत सहायता मिलेगी |
A3: प्रयोग में लेना का तरीका
A4: सर्वप्रथम detail में आप अपने कार्यालय का नाम एवं अधीनस्थ विद्यालयों के कर्मचरियों का डाटा इस प्रकार से भरे |
A5: कार्यालय का नाम | B5: कार्यालय का नाम लिखना है जिससे आदेश जारी होने है
A6: नाम कर्मचारी - | B6: इसमें कर्मचारी का नाम लिखे
A7: पद - | B7: कर्मचारी का पद लिखे
A8: सथायी | B8: कर्मचारी का स्थायी का विवरण
A9: नाम विद्यालय - | B9: सम्बंधित कर्मचारी के विद्यालय का नाम लिखे
A10: लेवल - | B10: कर्मचारी का लेवल लिखे
A11: वर्तमान वेतन - | B11: कर्मचारी का 30 जून 2022 का मूल वेतन लिखे
A12: ये डाटा भरने के बाद आपका वार्षिक वेतन वृद्धि आर्डर तैयार हो जायेगा आप इसका प्रिंट लेकर कर्मचारी की निजी पंजिका में लगा सकते है |
A13: For any Problem you can Contact-
A14: SUMIT GIRI, Senior Assistant
A15: Government Senior Secondary School, 15Z (Sri Ganganagar)
B16: 9414631519 | F16: sumitgiri777@gmail.com
A17: Password to enter details is 'sumit'. All sheets are protected.

Sheet detail
A1: jktLFkku ljdkj
A2: dk;kZy; dk uke %& | D2: ihbZbZvks 10tSM ,oa iz/kkukpk;Z jkmekfo 15tSM Jhxaxkuxj
A3: fnukad 30twu rd izkIr osru dh fnukad | D3: 2021-07-01
A4: osru o`f} dh fnukad %& | D4: 2022-07-01
A5: Ø-la- | B5: dkfeZd dk uke | C5: dkfeZd dk in | D5: LFkk;h ;k LFkkukiUUk | E5: inLFkkiu LFkku | F5: is&eSfVªDl ysoy | H5: orZeku osru
A6: 1 | B6: Jh lqfer fxjh | C6: o0v0 ¼iz/kkuk/;kid½ | D6: LFkk;h | E6: jkmizzkfo 12tSM | F6: Leval- | G6: 12 | H6: 61300
A7: 2 | B7: Jh lqfer fxjh | C7: v0 ysoy&kk | D7: LFkk;h | E7: jkmizzkfo 12tSM | F7: Leval- | G7: 12 | H7: 59500
A8: 3 | B8: Jh lqfer fxjh | C8: v0 ysoy&kk | D8: LFkk;h | E8: jkmizzkfo 12tSM | F8: Leval- | G8: 11 | H8: 43800
A9: 4 | B9: Jh lqfer fxjh | C9: v0 ysoy&kk | D9: LFkk;h | E9: jkmizzkfo 12tSM | F9: Leval- | G9: 11 | H9: 45100
A10: 5 | B10: Jh lqfer fxjh | C10: 'kk-f'k- | D10: LFkk;h | E10: jkmizzkfo 12tSM | F10: Leval- | G10: 12 | H10: 56100
A11: 6 | B11: Jh lqfer fxjh | C11: v0 ysoy&kk | D11: LFkk;h | E11: jkmizzkfo 12tSM | F11: Leval- | G11: 10 | H11: 35800
A12: 7 | B12: Jh lqfer fxjh | C12: v0 ysoy&kk | D12: LFkk;h | E12: jkmizzkfo 10, NksVh | F12: Leval- | G12: 11 | H12: 43800
A13: 8 | B13: Jh lqfer fxjh | C13: v- ysoy&k | D13: LFkk;h | E13: jkizkfo 8, NksVh | F13: Leval- | G13: 10 | H13: 39100
A14: 9 | B14: Jh lqfer fxjh | C14: v0 ysoy&kk | D14: LFkk;h | E14: jkizkfo 8, NksVh | F14: Leval- | G14: 10 | H14: 33800
A15: 10 | B15: Jh lqfer fxjh | C15: v0 ysoy&kk | D15: LFkk;h | E15: jkizkfo 8tSM | F15: Leval- | G15: 13 | H15: 65200
A16: 11 | B16: Jh lqfer fxjh | C16: v0 ysoy&kk | D16: LFkk;h | E16: jkizkfo 8tSM | F16: Leval- | G16: 10 | H16: 33800
A17: 12 | B17: Jh lqfer fxjh | C17: v0 ysoy&kk | D17: LFkk;h | E17: jkmizkfo 10, NksVh | F17: Leval- | G17: 10 | H17: 36900
A18: 13 | B18: Jh lqfer fxjh | C18: v0 ysoy&kk | D18: LFkk;h | E18: jkmizkfo 10, NksVh | F18: Leval- | G18: 10 | H18: 36900
A19: 14 | B19: Jh lqfer fxjh | C19: v0 ysoy&kk | D19: LFkk;h | E19: jkmizkfo 10, NksVh | F19: Leval- | G19: 10 | H19: 36900
A20: 15 | B20: Jh lqfer fxjh | C20: v0 ysoy&kk | D20: LFkk;h | E20: jkmizkfo 10, NksVh | F20: Leval- | G20: 10 | H20: 36900
A21: 16 | B21: Jh lqfer fxjh | C21: v0 ysoy&kk | D21: LFkk;h | E21: jkmizkfo 10, NksVh | F21: Leval- | G21: 10 | H21: 36900
A22: 17 | B22: Jh lqfer fxjh | C22: v0 ysoy&kk | D22: LFkk;h | E22: jkmizkfo 10, NksVh | F22: Leval- | G22: 10 | H22: 36900
A23: 18 | B23: Jh lqfer fxjh | C23: v0 ysoy&kk | D23: LFkk;h | E23: jkmizkfo 10, NksVh | F23: Leval- | G23: 10 | H23: 36900
A24: 19 | B24: Jh lqfer fxjh | C24: v0 ysoy&kk | D24: LFkk;h | E24: jkmizkfo 10, NksVh | F24: Leval- | G24: 10 | H24: 36900
A25: 20 | B25: Jh lqfer fxjh | C25: v0 ysoy&kk | D25: LFkk;h | E25: jkmizkfo 10, NksVh | F25: Leval- | G25: 10 | H25: 36900

Sheet 01.07.22 PEEO school
A1: jktLFkku ljdkj
B2: dkfeZd ¼[k&1½ foHkkx
B3: fu;rdkyhu osru o`f} izek.k i= | D3: dk;kZy; %& | G3: =detail!$D$2 -> ihbZbZvks 10tSM ,oa iz/kkukpk;Z jkmekfo 15tSM Jhxaxkuxj
B4: Schedule-1 | C4: Part `B` | D4: Rule No. 5(vi) and (vii) | E4: Pay Matrix of State Government Servants | K4: bl foHkkx dh vkKk | L4: ua-,Q15¼1½,QMh@:Yl@2017 | O4: t;iqj] | P4: fnukad | Q4: 2017-12-30 | R4: ds vuqlj.k esa
B6: 1 izekf.kr fd;k tkrk gS fd fuEufyf[kr jkT; deZpkjh us [kkuk la[;k 6 esa cryk, x, fu;e ls fu/kkZfjr fu;rdkfyd osruo`f} vftZr dj yh gSa jkT; deZpkjh us [kkuk la[;k 5 dh rkjh[k ls fufnZ"V in ij u;s osrueku 2017 ds fu;ekuqlkj vof/k esa dk;Z fd;k gSA mDr vof/k dh x.kuk nqjkpj.k vkfn ds dkj.k fuyEcu dh vof/k] osru vodk'k] vuqifLFkfr dh vof/k o in dks LFkkukiUu :i ls /kkj.k djus dh fLFkfr esas lHkh izdkj ds vodk'kksa dh vof/k ?kVk dj dh xbZ gSA
A8: Ø-la- | B8: deZpkjh dk uke e; in | D8: =detail!$D$2 -> ihbZbZvks 10tSM ,oa iz/kkukpk;Z jkmekfo 15tSM Jhxaxkuxj | E8: laLFkk;h ;k LFkkukiUUk | F8: is&eSfVªDl ysoy | I8: orZeku osru | J8: rkjh[k ftllasa orZeku osru izkIr fd;k tk jgk gS | K8: orZeku osru o`f} dh rkjh[k | L8: le lkef;d osru o`f) | M8: 0.03 | N8: Hkkoh osru | O8: nqjkpj.k ds fuyEcu vkSj ,slh vU; vuqifLFkfr ftldh x.kuk o`f} ds fy, ugha gksrh | Q8: fcuk osru vkSj LFkkukuUu inkf/kdkjh;kss ds ekeyksa ds vU; lHkh izdkj ds vodk'k
D9: ifj{ks= ds dkfeZd dk inLFkkiu fo|ky; dk uke | L9: 0.03 | O9: rkjh[k ls | P9: rkjh[k rd | Q9: rkjh[k ls | R9: rkjh[k rd
B10: 1 | E10: 2 | F10: 3 | I10: 4 | J10: 5 | K10: 6 | L10: 7 | M10: 7 | N10: 8 | O10: 9 | P10: 10 | Q10: 11 | R10: 12
A11: 1 | B11: =detail!B6 -> Jh lqfer fxjh | C11: =detail!C6 -> o0v0 ¼iz/kkuk/;kid½ | D11: =detail!E6 -> jkmizzkfo 12tSM | E11: =detail!D6 -> LFkk;h | F11: PB(2)- (9300-34800) (5400) | G11: =detail!F6 -> Leval- | H11: =detail!G6 -> 12 | I11: =detail!H6 -> 61300 | J11: =detail!$D$3 -> 2021-07-01 | K11: =detail!$D$4 -> 2022-07-01 | L11: =ROUND(M11,-2) -> 1800 | M11: =I11*3/100 -> 1839 | N11: =I11+L11 -> 63100
A12: 2 | B12: =detail!B7 -> Jh lqfer fxjh | C12: =detail!C7 -> v0 ysoy&kk | D12: =detail!E7 -> jkmizzkfo 12tSM | E12: =detail!D7 -> LFkk;h | F12: PB(2)- (9300-34800) (5400) | G12: =detail!F7 -> Leval- | H12: =detail!G7 -> 12 | I12: =detail!H7 -> 59500 | J12: =detail!$D$3 -> 2021-07-01 | K12: =detail!$D$4 -> 2022-07-01 | L12: =ROUND(M12,-2) -> 1800 | M12: 1785 | N12: =I12+L12 -> 61300
A13: 3 | B13: =detail!B8 -> Jh lqfer fxjh | C13: =detail!C8 -> v0 ysoy&kk | D13: =detail!E8 -> jkmizzkfo 12tSM | E13: =detail!D8 -> LFkk;h | F13: PB(2)- (9300-34800) (5400) | G13: =detail!F8 -> Leval- | H13: =detail!G8 -> 11 | I13: =detail!H8 -> 43800 | J13: =detail!$D$3 -> 2021-07-01 | K13: =detail!$D$4 -> 2022-07-01 | L13: =ROUND(M13,-2) -> 1300 | M13: 1314 | N13: =I13+L13 -> 45100
A14: 4 | B14: =detail!B9 -> Jh lqfer fxjh | C14: =detail!C9 -> v0 ysoy&kk | D14: =detail!E9 -> jkmizzkfo 12tSM | E14: =detail!D9 -> LFkk;h | F14: PB(2)- (9300-34800) (5400) | G14: =detail!F9 -> Leval- | H14: =detail!G9 -> 11 | I14: =detail!H9 -> 45100 | J14: =detail!$D$3 -> 2021-07-01 | K14: =detail!$D$4 -> 2022-07-01 | L14: 1400 | M14: 1353 | N14: =I14+L14 -> 46500
A15: 5 | B15: =detail!B10 -> Jh lqfer fxjh | C15: =detail!C10 -> 'kk-f'k- | D15: =detail!E10 -> jkmizzkfo 12tSM | E15: =detail!D10 -> LFkk;h | F15: PB(2)- (9300-34800) (5400) | G15: =detail!F10 -> Leval- | H15: =detail!G10 -> 12 | I15: =detail!H10 -> 56100 | J15: =detail!$D$3 -> 2021-07-01 | K15: =detail!$D$4 -> 2022-07-01 | L15: 1700 | M15: =I15*3/100 -> 1683 | N15: =I15+L15 -> 57800
A16: 6 | B16: =detail!B11 -> Jh lqfer fxjh | C16: =detail!C11 -> v0 ysoy&kk | D16: =detail!E11 -> jkmizzkfo 12tSM | E16: =detail!D11 -> LFkk;h | F16: PB(2)- (9300-34800) (5400) | G16: =detail!F11 -> Leval- | H16: =detail!G11 -> 10 | I16: =detail!H11 -> 35800 | J16: =detail!$D$3 -> 2021-07-01 | K16: =detail!$D$4 -> 2022-07-01 | L16: 1100 | M16: 1074 | N16: 36900
A17: 7 | B17: =detail!B12 -> Jh lqfer fxjh | C17: =detail!C12 -> v0 ysoy&kk | D17: =detail!E12 -> jkmizzkfo 10, NksVh | E17: =detail!D12 -> LFkk;h | F17: PB(2)- (9300-34800) (5400) | G17: =detail!F12 -> Leval- | H17: =detail!G12 -> 11 | I17: =detail!H12 -> 43800 | J17: =detail!$D$3 -> 2021-07-01 | K17: =detail!$D$4 -> 2022-07-01 | L17: 1300 | M17: 1314 | N17: 45100
A18: 8 | B18: =detail!B13 -> Jh lqfer fxjh | C18: =detail!C13 -> v- ysoy&k | D18: =detail!E13 -> jkizkfo 8, NksVh | E18: =detail!D13 -> LFkk;h | F18: PB(2)- (9300-34800) (5400) | G18: =detail!F13 -> Leval- | H18: =detail!G13 -> 10 | I18: =detail!H13 -> 39100 | J18: =detail!$D$3 -> 2021-07-01 | K18: =detail!$D$4 -> 2022-07-01 | L18: 1200 | M18: 1173 | N18: =I18+L18 -> 40300
A19: 9 | B19: =detail!B14 -> Jh lqfer fxjh | C19: =detail!C14 -> v0 ysoy&kk | D19: =detail!E14 -> jkizkfo 8, NksVh | E19: =detail!D14 -> LFkk;h | F19: PB(2)- (9300-34800) (5400) | G19: =detail!F14 -> Leval- | H19: =detail!G14 -> 10 | I19: =detail!H14 -> 33800 | J19: =detail!$D$3 -> 2021-07-01 | K19: =detail!$D$4 -> 2022-07-01 | L19: 1000 | M19: 1014 | N19: =I19+L19 -> 34800
A20: 10 | B20: =detail!B15 -> Jh lqfer fxjh | C20: =detail!C15 -> v0 ysoy&kk | D20: =detail!E15 -> jkizkfo 8tSM | E20: =detail!D15 -> LFkk;h | F20: PB(2)- (9300-34800) (5400) | G20: =detail!F15 -> Leval- | H20: =detail!G15 -> 13 | I20: =detail!H15 -> 65200 | J20: =detail!$D$3 -> 2021-07-01 | K20: =detail!$D$4 -> 2022-07-01 | L20: 2000 | M20: =I20*3/100 -> 1956 | N20: =I20+L20 -> 67200
A21: 11 | B21: =detail!B16 -> Jh lqfer fxjh | C21: =detail!C16 -> v0 ysoy&kk | D21: =detail!E16 -> jkizkfo 8tSM | E21: =detail!D16 -> LFkk;h | F21: PB(2)- (9300-34800) (5400) | G21: =detail!F16 -> Leval- | H21: =detail!G16 -> 10 | I21: =detail!H16 -> 33800 | J21: =detail!$D$3 -> 2021-07-01 | K21: =detail!$D$4 -> 2022-07-01 | L21: 1000 | M21: =I21*3/100 -> 1014 | N21: 34800
A22: 12 | B22: =detail!B17 -> Jh lqfer fxjh | C22: =detail!C17 -> v0 ysoy&kk | D22: =detail!E17 -> jkmizkfo 10, NksVh | E22: =detail!D17 -> LFkk;h | F22: PB(2)- (9300-34800) (5400) | G22: =detail!F17 -> Leval- | H22: =detail!G17 -> 10 | I22: =detail!H17 -> 36900 | J22: =detail!$D$3 -> 2021-07-01 | K22: =detail!$D$4 -> 2022-07-01 | L22: 1100 | M22: =I22*3/100 -> 1107 | N22: =I22+L22 -> 38000
A23: 13 | B23: =detail!B18 -> Jh lqfer fxjh | C23: =detail!C18 -> v0 ysoy&kk | D23: =detail!E18 -> jkmizkfo 10, NksVh | E23: =detail!D18 -> LFkk;h | F23: PB(2)- (9300-34800) (5400) | G23: =detail!F18 -> Leval- | H23: =detail!G18 -> 10 | I23: =detail!H18 -> 36900 | J23: =detail!$D$3 -> 2021-07-01 | K23: =detail!$D$4 -> 2022-07-01 | L23: 1100 | M23: =I23*3/100 -> 1107 | N23: =I23+L23 -> 38000
A24: 14 | B24: =detail!B19 -> Jh lqfer fxjh | C24: =detail!C19 -> v0 ysoy&kk | D24: =detail!E19 -> jkmizkfo 10, NksVh | E24: =detail!D19 -> LFkk;h | F24: PB(2)- (9300-34800) (5400) | G24: =detail!F19 -> Leval- | H24: =detail!G19 -> 10 | I24: =detail!H19 -> 36900 | J24: =detail!$D$3 -> 2021-07-01 | K24: =detail!$D$4 -> 2022-07-01 | L24: 1100 | M24: 1107 | N24: =I24+L24 -> 38000
A25: 15 | B25: =detail!B20 -> Jh lqfer fxjh | C25: =detail!C20 -> v0 ysoy&kk | D25: =detail!E20 -> jkmizkfo 10, NksVh | E25: =detail!D20 -> LFkk;h | F25: PB(2)- (9300-34800) (5400) | G25: =detail!F20 -> Leval- | H25: =detail!G20 -> 10 | I25: =detail!H20 -> 36900 | J25: =detail!$D$3 -> 2021-07-01 | K25: =detail!$D$4 -> 2022-07-01 | L25: 1100 | M25: =I25*3/100 -> 1107 | N25: =I25+L25 -> 38000
A26: 16 | B26: =detail!B21 -> Jh lqfer fxjh | C26: =detail!C21 -> v0 ysoy&kk | D26: =detail!E21 -> jkmizkfo 10, NksVh | E26: =detail!D21 -> LFkk;h | F26: PB(2)- (9300-34800) (5400) | G26: =detail!F21 -> Leval- | H26: =detail!G21 -> 10 | I26: =detail!H21 -> 36900 | J26: =detail!$D$3 -> 2021-07-01 | K26: =detail!$D$4 -> 2022-07-01 | L26: 1100 | M26: =I26*3/100 -> 1107 | N26: =I26+L26 -> 38000
A27: 17 | B27: =detail!B22 -> Jh lqfer fxjh | C27: =detail!C22 -> v0 ysoy&kk | D27: =detail!E22 -> jkmizkfo 10, NksVh | E27: =detail!D22 -> LFkk;h | F27: PB(2)- (9300-34800) (5400) | G27: =detail!F22 -> Leval- | H27: =detail!G22 -> 10 | I27: =detail!H22 -> 36900 | J27: =detail!$D$3 -> 2021-07-01 | K27: =detail!$D$4 -> 2022-07-01 | L27: 1100 | M27: =I27*3/100 -> 1107 | N27: =I27+L27 -> 38000
A28: 18 | B28: =detail!B23 -> Jh lqfer fxjh | C28: =detail!C23 -> v0 ysoy&kk | D28: =detail!E23 -> jkmizkfo 10, NksVh | E28: =detail!D23 -> LFkk;h | G28: =detail!F23 -> Leval- | H28: =detail!G23 -> 10 | I28: =detail!H23 -> 36900 | J28: =detail!$D$3 -> 2021-07-01 | K28: =detail!$D$4 -> 2022-07-01 | L28: =ROUND(M28,-2) -> 1100 | M28: =I28*3/100 -> 1107 | N28: =I28+L28 -> 38000
A29: 19 | B29: =detail!B24 -> Jh lqfer fxjh | C29: =detail!C24 -> v0 ysoy&kk | D29: =detail!E24 -> jkmizkfo 10, NksVh | E29: =detail!D24 -> LFkk;h | G29: =detail!F24 -> Leval- | H29: =detail!G24 -> 10 | I29: =detail!H24 -> 36900 | J29: =detail!$D$3 -> 2021-07-01 | K29: =detail!$D$4 -> 2022-07-01 | L29: =ROUND(M29,-2) -> 1100 | M29: =I29*3/100 -> 1107 | N29: =I29+L29 -> 38000
A30: 20 | B30: =detail!B25 -> Jh lqfer fxjh | C30: =detail!C25 -> v0 ysoy&kk | D30: =detail!E25 -> jkmizkfo 10, NksVh | E30: =detail!D25 -> LFkk;h | G30: =detail!F25 -> Leval- | H30: =detail!G25 -> 10 | I30: =detail!H25 -> 36900 | J30: =detail!$D$3 -> 2021-07-01 | K30: =detail!$D$4 -> 2022-07-01 | L30: 1100 | M30: 1107 | N30: 38000
B32: izekf.kr fd;k tkrk gS fd jktLFkku lsok fu;e 31ds vuqlkj mi;qZDr vodk'k dh x.kuk ml in ds le;eku esa osru o`f} ds fy, ekU; gksrh gS ftl ij mi;qZDr jkT; deZpkjh vodk'k tkrs le; LFkkukiUu fLFkfr esa dk;Z dj jgk Fkk vkSj og vodk'k ij ugha tkrk rks aLFkkukiUu fLFkfr esa dk;Z djrk jgrkA
B33: Øekad %& | C33: ------------------------------------------------------------------ | K33: fnukad | L33: ------------------------
B34: uksV%& 1 dkj.k la[;k ¼1½ ;k ¼2½ izR;sd uke ds vkxs fy[kh tkuh pkfg,A ftl izzdj.k esa dkj.k la[;k ¼2½ Hkkx gksrk gS og Li"Vhdj.k Kkiu layXu djuk pkfg,A
B35: la[;k%& ua-,Q15¼1½,QMh@:Yl@2017 t;iqj fnukad%& 30-10-2017
B36: 2 vuqHkkxkf/kdkjh] dkfeZd ¼x½ foHkkx 'kklu lfpoky; dks vfrfjDr izfr lfgr lwpukFkZ ,oa vko';d dk;Zokgh gsrq izsf"kr gSA
B37: 3 lacaf/kr O;fDr@dkfeZd A
B38: 4 futh i=koyh @jf{kr i=koyhA
B39: 5 Jheku dks"kkf/kdkjh@midks"kkf/kdkjh ---------------------------------

Sheet Metrix chart
A1: Pay Metrix of State Government Servents wef 01-10-2017
A2: Existing Pay Band | B2: PB-1 (5200-20200) | K2: PB-2 (9300-34800) | O2: PB-3 (15600-39100) | V2: PB-4 (37400-67000) | AA2: =RIGHT(AA4,LEN(AA4)-2)+1 -> 13 | AB2: =CONCATENATE("L-",AA2) -> L-13
A3: Existing Grade Pay | B3: 1700 | C3: 1750 | D3: 1900 | E3: 2000 | F3: 2400 | G3: 2400 | H3: 2400 | I3: 2800 | J3: 2800 | K3: 3600 | L3: 4200 | M3: 4800 | N3: 5400 | O3: 5400 | P3: 6000 | Q3: 6600 | R3: 6800 | S3: 7200 | T3: 7600 | U3: 8200 | V3: 8700 | W3: 8900 | X3: 9500 | Y3: 10000 | AA3: =[1]Entry!E11 -> 59500 | AB3: =ROUND(AA5*3%,-2)+AA5 -> 61300
A4: Existing Grade Pay No. | B4: 2 | C4: 3 | D4: 4 | E4: 5 | F4: 9 | G4: 9A | H4: 9B | I4: 10 | J4: 10A | K4: 11 | L4: 12 | M4: 13 | N4: 15 | O4: 15 | P4: 16 | Q4: 17 | R4: 18 | S4: 19 | T4: 20 | U4: 21 | V4: 22 | W4: 23 | X4: 23A | Y4: 24 | AA4: =[1]Entry!G11 -> L-12 | AB4: =AB2 -> L-13
A5: Level | B5: L-1 | C5: L-2 | D5: L-3 | E5: L-4 | F5: L-5 | G5: L-6 | H5: L-7 | I5: L-8 | J5: L-9 | K5: L-10 | L5: L-11 | M5: L-12 | N5: L-13 | O5: L-14 | P5: L-15 | Q5: L-16 | R5: L-17 | S5: L-18 | T5: L-19 | U5: L-20 | V5: L-21 | W5: L-22 | X5: L-23 | Y5: L-24 | AA5: =INDEX($AA$7:$AA$46,MATCH(TRUE,INDEX($AA$7:$AA$46>=AA3,0),)) -> 59500 | AB5: =INDEX($AB$7:$AB$46,MATCH(TRUE,INDEX($AB$7:$AB$46>=AB3,0),)) -> 61500
A6: Cell No. | B6: Pay Metrix (Amount in Rs.)
A7: 1 | B7: 17700 | C7: 17900 | D7: 18200 | E7: 19200 | F7: 20800 | G7: 21500 | H7: 22400 | I7: 26300 | J7: 28700 | K7: 33800 | L7: 37800 | M7: 44300 | N7: 53100 | O7: 56100 | P7: 60700 | Q7: 67300 | R7: 71000 | S7: 75300 | T7: 79900 | U7: 88900 | V7: 123100 | W7: 129700 | X7: 145800 | Y7: 148800 | AA7: =IF($AA$4="L-1",B7,IF($AA$4="L-2",C7,IF($AA$4="L-3",D7,IF($AA$4="L-4",E7,IF($AA$4="L-5",F7,IF($AA$4="L-6",G7,IF($AA$4="L-7",H7,IF($AA$4="L-8",I7,IF($AA$4="L-9",J7,IF($AA$4="L-10",K7,IF($AA$4="L-11",L7,IF($AA$4="L-12",M7,IF($AA$4="L-13",N7,IF($AA$4="L-14",O7,IF($AA$4="L-15",P7,IF($AA$4="L-16",Q7,IF($AA$4="L-17",R7,IF($AA$4="L-18",S7,IF($AA$4="L-19",T7,IF($AA$4="L-20",U7,IF($AA$4="L-21",V7,IF($AA$4="L-22",W7,IF($AA$4="L-23",X7,IF($AA$4="L-24",Y7,"")))))))))))))))))))))))) -> 44300 | AB7: =IF($AB$4="L-1",B7,IF($AB$4="L-2",C7,IF($AB$4="L-3",D7,IF($AB$4="L-4",E7,IF($AB$4="L-5",F7,IF($AB$4="L-6",G7,IF($AB$4="L-7",H7,IF($AB$4="L-8",I7,IF($AB$4="L-9",J7,IF($AB$4="L-10",K7,IF($AB$4="L-11",L7,IF($AB$4="L-12",M7,IF($AB$4="L-13",N7,IF($AB$4="L-14",O7,IF($AB$4="L-15",P7,IF($AB$4="L-16",Q7,IF($AB$4="L-17",R7,IF($AB$4="L-18",S7,IF($AB$4="L-19",T7,IF($AB$4="L-20",U7,IF($AB$4="L-21",V7,IF($AB$4="L-22",W7,IF($AB$4="L-23",X7,IF($AB$4="L-24",Y7,"")))))))))))))))))))))))) -> 53100
A8: 2 | B8: 18200 | C8: 18400 | D8: 18700 | E8: 19800 | F8: 21400 | G8: 22100 | H8: 23100 | I8: 27100 | J8: 29600 | K8: 34800 | L8: 38900 | M8: 45600 | N8: 54700 | O8: 57800 | P8: 62500 | Q8: 69300 | R8: 73100 | S8: 77600 | T8: 82300 | U8: 91600 | V8: 126800 | W8: 133600 | X8: 150200 | Y8: 153300 | AA8: =IF($AA$4="L-1",B8,IF($AA$4="L-2",C8,IF($AA$4="L-3",D8,IF($AA$4="L-4",E8,IF($AA$4="L-5",F8,IF($AA$4="L-6",G8,IF($AA$4="L-7",H8,IF($AA$4="L-8",I8,IF($AA$4="L-9",J8,IF($AA$4="L-10",K8,IF($AA$4="L-11",L8,IF($AA$4="L-12",M8,IF($AA$4="L-13",N8,IF($AA$4="L-14",O8,IF($AA$4="L-15",P8,IF($AA$4="L-16",Q8,IF($AA$4="L-17",R8,IF($AA$4="L-18",S8,IF($AA$4="L-19",T8,IF($AA$4="L-20",U8,IF($AA$4="L-21",V8,IF($AA$4="L-22",W8,IF($AA$4="L-23",X8,IF($AA$4="L-24",Y8,"")))))))))))))))))))))))) -> 45600 | AB8: =IF($AB$4="L-1",B8,IF($AB$4="L-2",C8,IF($AB$4="L-3",D8,IF($AB$4="L-4",E8,IF($AB$4="L-5",F8,IF($AB$4="L-6",G8,IF($AB$4="L-7",H8,IF($AB$4="L-8",I8,IF($AB$4="L-9",J8,IF($AB$4="L-10",K8,IF($AB$4="L-11",L8,IF($AB$4="L-12",M8,IF($AB$4="L-13",N8,IF($AB$4="L-14",O8,IF($AB$4="L-15",P8,IF($AB$4="L-16",Q8,IF($AB$4="L-17",R8,IF($AB$4="L-18",S8,IF($AB$4="L-19",T8,IF($AB$4="L-20",U8,IF($AB$4="L-21",V8,IF($AB$4="L-22",W8,IF($AB$4="L-23",X8,IF($AB$4="L-24",Y8,"")))))))))))))))))))))))) -> 54700
A9: 3 | B9: 18700 | C9: 19000 | D9: 19300 | E9: 20400 | F9: 22000 | G9: 22800 | H9: 23800 | I9: 27900 | J9: 30500 | K9: 35800 | L9: 40100 | M9: 47000 | N9: 56300 | O9: 59500 | P9: 64400 | Q9: 71400 | R9: 75300 | S9: 79900 | T9: 84800 | U9: 94300 | V9: 130600 | W9: 137600 | X9: 154700 | Y9: 157900 | AA9: 47000 | AB9: 56300
A10: 4 | B10: 19300 | C10: 19600 | D10: 19900 | E10: 21000 | F10: 22700 | G10: 23500 | H10: 24500 | I10: 28700 | J10: 31400 | K10: 36900 | L10: 41300 | M10: 48400 | N10: 58000 | O10: 61300 | P10: 66300 | Q10: 73500 | R10: 77600 | S10: 82300 | T10: 87300 | U10: 97100 | V10: 134500 | W10: 141700 | X10: 159300 | Y10: 162600 | AA10: 48400 | AB10: 58000
A11: 5 | B11: 19900 | C11: 20200 | D11: 20500 | E11: 21600 | F11: 23400 | G11: 24200 | H11: 25200 | I11: 29600 | J11: 32300 | K11: 38000 | L11: 42500 | M11: 49900 | N11: 59700 | O11: 63100 | P11: 68300 | Q11: 75700 | R11: 79900 | S11: 84800 | T11: 89900 | U11: 100000 | V11: 138500 | W11: 146000 | X11: 164100 | Y11: 167500 | AA11: 49900 | AB11: 59700
A12: 6 | B12: 20500 | C12: 20800 | D12: 21100 | E12: 22200 | F12: 24100 | G12: 24900 | H12: 26000 | I12: 30500 | J12: 33300 | K12: 39100 | L12: 43800 | M12: 51400 | N12: 61500 | O12: 65000 | P12: 70300 | Q12: 78000 | R12: 82300 | S12: 87300 | T12: 92600 | U12: 103000 | V12: 142700 | W12: 150400 | X12: 169000 | Y12: 172500 | AA12: 51400 | AB12: 61500
A13: 7 | B13: 21100 | C13: 21400 | D13: 21700 | E13: 22900 | F13: 24800 | G13: 25600 | H13: 26800 | I13: 31400 | J13: 34300 | K13: 40300 | L13: 45100 | M13: 52900 | N13: 63300 | O13: 67000 | P13: 72400 | Q13: 80300 | R13: 84800 | S13: 89900 | T13: 95400 | U13: 106100 | V13: 147000 | W13: 154900 | X13: 174100 | Y13: 177700 | AA13: 52900 | AB13: 63300
A14: 8 | B14: 21700 | C14: 22000 | D14: 22400 | E14: 23600 | F14: 25500 | G14: 26400 | H14: 27600 | I14: 32300 | J14: 35300 | K14: 41500 | L14: 46500 | M14: 54500 | N14: 65200 | O14: 69000 | P14: 74600 | Q14: 82700 | R14: 87300 | S14: 92600 | T14: 98300 | U14: 109300 | V14: 151400 | W14: 159500 | X14: 179300 | Y14: 183000 | AA14: 54500 | AB14: 65200
A15: 9 | B15: 22400 | C15: 22700 | D15: 23100 | E15: 24300 | F15: 26300 | G15: 27200 | H15: 28400 | I15: 33300 | J15: 36400 | K15: 42700 | L15: 47900 | M15: 56100 | N15: 67200 | O15: 71100 | P15: 76800 | Q15: 85200 | R15: 89900 | S15: 95400 | T15: 101200 | U15: 112600 | V15: 155900 | W15: 164300 | X15: 184700 | Y15: 188500 | AA15: 56100 | AB15: 67200
A16: 10 | B16: 23100 | C16: 23400 | D16: 23800 | E16: 25000 | F16: 27100 | G16: 28000 | H16: 29300 | I16: 34300 | J16: 37500 | K16: 44000 | L16: 49300 | M16: 57800 | N16: 69200 | O16: 73200 | P16: 79100 | Q16: 87800 | R16: 92600 | S16: 98300 | T16: 104200 | U16: 116000 | V16: 160600 | W16: 169200 | X16: 190200 | Y16: 194200 | AA16: 57800 | AB16: 69200
A17: 11 | B17: 23800 | C17: 24100 | D17: 24500 | E17: 25800 | F17: 27900 | G17: 28800 | H17: 30200 | I17: 35300 | J17: 38600 | K17: 45300 | L17: 50800 | M17: 59500 | N17: 71300 | O17: 75400 | P17: 81500 | Q17: 90400 | R17: 95400 | S17: 101200 | T17: 107300 | U17: 119500 | V17: 165400 | W17: 174300 | X17: 195900 | Y17: 200000 | AA17: 59500 | AB17: 71300
A18: 12 | B18: 24500 | C18: 24800 | D18: 25200 | E18: 26600 | F18: 28700 | G18: 29700 | H18: 31100 | I18: 36400 | J18: 39800 | K18: 46700 | L18: 52300 | M18: 61300 | N18: 73400 | O18: 77700 | P18: 83900 | Q18: 93100 | R18: 98300 | S18: 104200 | T18: 110500 | U18: 123100 | V18: 170400 | W18: 179500 | X18: 201800 | Y18: 206000 | AA18: 61300 | AB18: 73400
A19: 13 | B19: 25200 | C19: 25500 | D19: 26000 | E19: 27400 | F19: 29600 | G19: 30600 | H19: 32000 | I19: 37500 | J19: 41000 | K19: 48100 | L19: 53900 | M19: 63100 | N19: 75600 | O19: 80000 | P19: 86400 | Q19: 95900 | R19: 101200 | S19: 107300 | T19: 113800 | U19: 126800 | V19: 175500 | W19: 184900 | X19: 207900 | Y19: 212200 | AA19: 63100 | AB19: 75600
A20: 14 | B20: 26000 | C20: 26300 | D20: 26800 | E20: 28200 | F20: 30500 | G20: 31500 | H20: 33000 | I20: 38600 | J20: 42200 | K20: 49500 | L20: 55500 | M20: 65000 | N20: 77900 | O20: 82400 | P20: 89000 | Q20: 98800 | R20: 104200 | S20: 110500 | T20: 117200 | U20: 130600 | V20: 180800 | W20: 190400 | X20: 214100 | Y20: 218600 | AA20: 65000 | AB20: 77900
A21: 15 | B21: 26800 | C21: 27100 | D21: 27600 | E21: 29000 | F21: 31400 | G21: 32400 | H21: 34000 | I21: 39800 | J21: 43500 | K21: 51000 | L21: 57200 | M21: 67000 | N21: 80200 | O21: 84900 | P21: 91700 | Q21: 101800 | R21: 107300 | S21: 113800 | T21: 120700 | U21: 134500 | V21: 186200 | W21: 196100 | AA21: 67000 | AB21: 80200
A22: 16 | B22: 27600 | C22: 27900 | D22: 28400 | E22: 29900 | F22: 32300 | G22: 33400 | H22: 35000 | I22: 41000 | J22: 44800 | K22: 52500 | L22: 58900 | M22: 69000 | N22: 82600 | O22: 87400 | P22: 94500 | Q22: 104900 | R22: 110500 | S22: 117200 | T22: 124300 | U22: 138500 | V22: 191800 | W22: 202000 | AA22: 69000 | AB22: 82600
A23: 17 | B23: 28400 | C23: 28700 | D23: 29300 | E23: 30800 | F23: 33300 | G23: 34400 | H23: 36100 | I23: 42200 | J23: 46100 | K23: 54100 | L23: 60700 | M23: 71100 | N23: 85100 | O23: 90000 | P23: 97300 | Q23: 108000 | R23: 113800 | S23: 120700 | T23: 128000 | U23: 142700 | V23: 197600 | W23: 208100 | AA23: 71100 | AB23: 85100
A24: 18 | B24: 29300 | C24: 29600 | D24: 30200 | E24: 31700 | F24: 34300 | G24: 35400 | H24: 37200 | I24: 43500 | J24: 47500 | K24: 55700 | L24: 62500 | M24: 73200 | N24: 87700 | O24: 92700 | P24: 100200 | Q24: 111200 | R24: 117200 | S24: 124300 | T24: 131800 | U24: 147000 | V24: 203500 | AA24: 73200 | AB24: 87700
A25: 19 | B25: 30200 | C25: 30500 | D25: 31100 | E25: 32700 | F25: 35300 | G25: 36500 | H25: 38300 | I25: 44800 | J25: 48900 | K25: 57400 | L25: 64400 | M25: 75400 | N25: 90300 | O25: 95500 | P25: 103200 | Q25: 114500 | R25: 120700 | S25: 128000 | T25: 135800 | U25: 151400 | AA25: 75400 | AB25: 90300
A26: 20 | B26: 31100 | C26: 31400 | D26: 32000 | E26: 33700 | F26: 36400 | G26: 37600 | H26: 39400 | I26: 46100 | J26: 50400 | K26: 59100 | L26: 66300 | M26: 77700 | N26: 93000 | O26: 98400 | P26: 106300 | Q26: 117900 | R26: 124300 | S26: 131800 | T26: 139900 | U26: 155900 | AA26: 77700 | AB26: 93000
A27: 21 | B27: 32000 | C27: 32300 | D27: 33000 | E27: 34700 | F27: 37500 | G27: 38700 | H27: 40600 | I27: 47500 | J27: 51900 | K27: 60900 | L27: 68300 | M27: 80000 | N27: 95800 | O27: 101400 | P27: 109500 | Q27: 121400 | R27: 128000 | S27: 135800 | T27: 144100 | U27: 160600 | AA27: 80000 | AB27: 95800
A28: 22 | B28: 33000 | C28: 33300 | D28: 34000 | E28: 35700 | F28: 38600 | G28: 39900 | H28: 41800 | I28: 48900 | J28: 53500 | K28: 62700 | L28: 70300 | M28: 82400 | N28: 98700 | O28: 104400 | P28: 112800 | Q28: 125000 | R28: 131800 | S28: 139900 | T28: 148400 | U28: 165400 | AA28: 82400 | AB28: 98700
A29: 23 | B29: 34000 | C29: 34300 | D29: 35000 | E29: 36800 | F29: 39800 | G29: 41100 | H29: 43100 | I29: 50400 | J29: 55100 | K29: 64600 | L29: 72400 | M29: 84900 | N29: 101700 | O29: 107500 | P29: 116200 | Q29: 128800 | R29: 135800 | S29: 144100 | T29: 152900 | U29: 170400 | AA29: 84900 | AB29: 101700
A30: 24 | B30: 35000 | C30: 35300 | D30: 36100 | E30: 37900 | F30: 41000 | G30: 42300 | H30: 44400 | I30: 51900 | J30: 56800 | K30: 66500 | L30: 74600 | M30: 87400 | N30: 104800 | O30: 110700 | P30: 119700 | Q30: 132700 | R30: 139900 | S30: 148400 | T30: 157500 | U30: 175500 | AA30: 87400 | AB30: 104800
A31: 25 | B31: 36100 | C31: 36400 | D31: 37200 | E31: 39000 | F31: 42200 | G31: 43600 | H31: 45700 | I31: 53500 | J31: 58500 | K31: 68500 | L31: 76800 | M31: 90000 | N31: 107900 | O31: 114000 | P31: 123300 | Q31: 136700 | R31: 144100 | S31: 152900 | T31: 162200 | U31: 180800 | AA31: 90000 | AB31: 107900
A32: 26 | B32: 37200 | C32: 37500 | D32: 38300 | E32: 40200 | F32: 43500 | G32: 44900 | H32: 47100 | I32: 55100 | J32: 60300 | K32: 70600 | L32: 79100 | M32: 92700 | N32: 111100 | O32: 117400 | P32: 127000 | Q32: 140800 | R32: 148400 | S32: 157500 | T32: 167100 | U32: 186200 | AA32: 92700 | AB32: 111100
A33: 27 | B33: 38300 | C33: 38600 | D33: 39400 | E33: 41400 | F33: 44800 | G33: 46200 | H33: 48500 | I33: 56800 | J33: 62100 | K33: 72700 | L33: 81500 | M33: 95500 | N33: 114400 | O33: 120900 | P33: 130800 | Q33: 145000 | R33: 152900 | S33: 162200 | T33: 172100 | U33: 191800 | AA33: 95500 | AB33: 114400
A34: 28 | B34: 39400 | C34: 39800 | D34: 40600 | E34: 42600 | F34: 46100 | G34: 47600 | H34: 50000 | I34: 58500 | J34: 64000 | K34: 74900 | L34: 83900 | M34: 98400 | N34: 117800 | O34: 124500 | P34: 134700 | Q34: 149400 | R34: 157500 | S34: 167100 | T34: 177300 | U34: 197600 | AA34: 98400 | AB34: 117800
A35: 29 | B35: 40600 | C35: 41000 | D35: 41800 | E35: 43900 | F35: 47500 | G35: 49000 | H35: 51500 | I35: 60300 | J35: 65900 | K35: 77100 | L35: 86400 | M35: 101400 | N35: 121300 | O35: 128200 | P35: 138700 | Q35: 153900 | R35: 162200 | S35: 172100 | T35: 182600 | U35: 203500 | AA35: 101400 | AB35: 121300
A36: 30 | B36: 41800 | C36: 42200 | D36: 43100 | E36: 45200 | F36: 48900 | G36: 50500 | H36: 53000 | I36: 62100 | J36: 67900 | K36: 79400 | L36: 89000 | M36: 104400 | N36: 124900 | O36: 132000 | P36: 142900 | Q36: 158500 | R36: 167100 | S36: 177300 | T36: 188100 | AA36: 104400 | AB36: 124900
A37: 31 | B37: 43100 | C37: 43500 | D37: 44400 | E37: 46600 | F37: 50400 | G37: 52000 | H37: 54600 | I37: 64000 | J37: 69900 | K37: 81800 | L37: 91700 | M37: 107500 | N37: 128600 | O37: 136000 | P37: 147200 | Q37: 163300 | R37: 172100 | S37: 182600 | T37: 193700 | AA37: 107500 | AB37: 128600
A38: 32 | B38: 44400 | C38: 44800 | D38: 45700 | E38: 48000 | F38: 51900 | G38: 53600 | H38: 56200 | I38: 65900 | J38: 72000 | K38: 84300 | L38: 94500 | M38: 110700 | N38: 132500 | O38: 140100 | P38: 151600 | Q38: 168200 | R38: 177300 | S38: 188100 | T38: 199500 | AA38: 110700 | AB38: 132500
A39: 33 | B39: 45700 | C39: 46100 | D39: 47100 | E39: 49400 | F39: 53500 | G39: 55200 | H39: 57900 | I39: 67900 | J39: 74200 | K39: 86800 | L39: 97300 | M39: 114000 | N39: 136500 | O39: 144300 | P39: 156100 | Q39: 173200 | R39: 182600 | S39: 193700 | AA39: 114000 | AB39: 136500
A40: 34 | B40: 47100 | C40: 47500 | D40: 48500 | E40: 50900 | F40: 55100 | G40: 56900 | H40: 59600 | I40: 69900 | J40: 76400 | K40: 89400 | L40: 100200 | M40: 117400 | N40: 140600 | O40: 148600 | P40: 160800 | Q40: 178400 | R40: 188100 | S40: 199500 | AA40: 117400 | AB40: 140600
A41: 35 | B41: 48500 | C41: 48900 | D41: 50000 | E41: 52400 | F41: 56800 | G41: 58600 | H41: 61400 | I41: 72000 | J41: 78700 | K41: 92100 | L41: 103200 | M41: 120900 | N41: 144800 | O41: 153100 | P41: 165600 | Q41: 183800 | R41: 193700 | AA41: 120900 | AB41: 144800
A42: 36 | B42: 50000 | C42: 50400 | D42: 51500 | E42: 54000 | F42: 58500 | G42: 60400 | H42: 63200 | I42: 74200 | J42: 81100 | K42: 94900 | L42: 106300 | M42: 124500 | N42: 149100 | O42: 157700 | P42: 170600 | Q42: 189300 | R42: 199500 | AA42: 124500 | AB42: 149100
A43: 37 | B43: 51500 | C43: 51900 | D43: 53000 | E43: 55600 | F43: 60300 | G43: 62200 | H43: 65100 | I43: 76400 | J43: 83500 | K43: 97700 | L43: 109500 | M43: 128200 | N43: 153600 | O43: 162400 | P43: 175700 | Q43: 195000 | AA43: 128200 | AB43: 153600
A44: 38 | B44: 53000 | C44: 53500 | D44: 54600 | E44: 57300 | F44: 62100 | G44: 64100 | H44: 67100 | I44: 78700 | J44: 86000 | K44: 100600 | L44: 112800 | M44: 132000 | N44: 158200 | O44: 167300 | P44: 181000 | AA44: 132000 | AB44: 158200
A45: 39 | B45: 54600 | C45: 55100 | D45: 56200 | E45: 59000 | F45: 64000 | G45: 66000 | H45: 69100 | I45: 81100 | J45: 88600 | K45: 103600 | L45: 116200 | M45: 136000 | N45: 162900 | O45: 172300 | P45: 186400 | AA45: 136000 | AB45: 162900
A46: 40 | B46: 56200 | C46: 56800 | D46: 57900 | E46: 60800 | F46: 65900 | G46: 68000 | H46: 71200 | I46: 83500 | J46: 91300 | K46: 106700 | L46: 119700 | M46: 140100 | N46: 167800 | O46: 177500 | P46: 192000 | AA46: 140100 | AB46: 167800
